[Event "*** Titled Tuesday Blitz"]
[Site "Chess.com"]
[Date "2019.11.05"]
[Round "4"]
[White "gross-aleks"]
[Black "vugarrasulov"]
[Result "0-1"]
[WhiteElo "2540"]
[BlackElo "2767"]
[TimeControl "180+2"]
[EndTime "13:48:00 PST"]
[Termination "vugarrasulov won by resignation"]

1. c4 {[%clk 0:02:28.5]} 1... c5 {[%clk 0:02:59.1]} 2. Nc3 {[%clk 0:02:28.8]}
2... Nc6 {[%clk 0:02:59]} 3. g3 {[%clk 0:02:29.4]} 3... g6 {[%clk 0:03:00.3]} 4.
Bg2 {[%clk 0:02:30.6]} 4... Bg7 {[%clk 0:03:01.9]} 5. Nf3 {[%clk 0:02:30.2]}
5... e6 {[%clk 0:03:03.3]} 6. d3 {[%clk 0:02:31.3]} 6... Nge7 {[%clk 0:03:04.7]}
7. O-O {[%clk 0:02:32.5]} 7... O-O {[%clk 0:03:06.3]} 8. Rb1 {[%clk 0:02:33.1]}
8... d5 {[%clk 0:03:06.2]} 9. Bg5 {[%clk 0:02:34]} 9... h6 {[%clk 0:02:54.1]}
10. Bd2 {[%clk 0:02:30.1]} 10... Kh7 {[%clk 0:02:55.5]} 11. a3 {[%clk
0:02:29.6]} 11... b6 {[%clk 0:02:52.8]} 12. b4 {[%clk 0:02:26.4]} 12... cxb4
{[%clk 0:02:53.7]} 13. axb4 {[%clk 0:02:27]} 13... Bb7 {[%clk 0:02:54.8]} 14.
cxd5 {[%clk 0:02:23.3]} 14... exd5 {[%clk 0:02:54.4]} 15. b5 {[%clk 0:02:23.9]}
15... Na5 {[%clk 0:02:51]} 16. d4 {[%clk 0:02:24.2]} 16... Nc4 {[%clk
0:02:50.2]} 17. Bc1 {[%clk 0:02:14.6]} 17... Nf5 {[%clk 0:02:49.4]} 18. e3
{[%clk 0:02:14.8]} 18... Nfd6 {[%clk 0:02:49]} 19. Ne5 {[%clk 0:01:59.3]} 19...
Nxe5 {[%clk 0:02:39.4]} 20. dxe5 {[%clk 0:01:59.8]} 20... Ne4 {[%clk 0:02:40.4]}
21. Nxe4 {[%clk 0:01:49.2]} 21... dxe4 {[%clk 0:02:42.3]} 22. Qa4 {[%clk
0:01:40.3]} 22... a6 {[%clk 0:02:23.4]} 23. Bxe4 {[%clk 0:01:33.3]} 23... axb5
{[%clk 0:02:23]} 24. Qb4 {[%clk 0:01:30.9]} 24... Ra4 {[%clk 0:02:21.2]} 25.
Bxb7 {[%clk 0:01:29.9]} 25... Rxb4 {[%clk 0:02:22.1]} 26. Rxb4 {[%clk
0:01:31.8]} 26... Qe7 {[%clk 0:02:23.2]} 0-1

[Event "*** Titled Tuesday Blitz"]
[Site "Chess.com"]
[Date "2019.11.05"]
[Round "4"]
[White "Cruel_Yaro"]
[Black "Firouzja2003"]
[Result "1/2-1/2"]
[WhiteElo "2875"]
[BlackElo "3070"]
[TimeControl "180+2"]
[EndTime "13:48:17 PST"]
[Termination "Game drawn by repetition"]

1. e4 {[%clk 0:03:00.3]} 1... e5 {[%clk 0:03:00.5]} 2. Nf3 {[%clk 0:03:01.1]}
2... Nc6 {[%clk 0:03:02]} 3. Bb5 {[%clk 0:03:01.9]} 3... f5 {[%clk 0:03:03.4]}
4. d4 {[%clk 0:02:56.8]} 4... fxe4 {[%clk 0:03:01.2]} 5. Nxe5 {[%clk 0:02:57.7]}
5... Nxe5 {[%clk 0:03:02.1]} 6. dxe5 {[%clk 0:02:59.1]} 6... c6 {[%clk
0:03:03.7]} 7. Nc3 {[%clk 0:02:59.5]} 7... cxb5 {[%clk 0:02:44.1]} 8. Nxe4
{[%clk 0:03:00]} 8... d5 {[%clk 0:02:44.9]} 9. exd6 {[%clk 0:02:59.3]} 9... Nf6
{[%clk 0:02:12.4]} 10. Bg5 {[%clk 0:02:57.2]} 10... Qa5+ {[%clk 0:01:38.1]} 11.
Nc3 {[%clk 0:02:57]} 11... b4 {[%clk 0:01:23.4]} 12. Bxf6 {[%clk 0:02:56.6]}
12... bxc3 {[%clk 0:01:09.4]} 13. Bxc3 {[%clk 0:02:46.3]} 13... Qb5 {[%clk
0:01:04.2]} 14. a4 {[%clk 0:02:26.4]} 14... Qc4 {[%clk 0:01:03.4]} 15. Qh5+
{[%clk 0:02:16.7]} 15... Qf7 {[%clk 0:01:01.7]} 16. Qb5+ {[%clk 0:02:13.1]}
16... Qd7 {[%clk 0:00:57.7]} 17. Qh5+ {[%clk 0:02:06.7]} 17... Qf7 {[%clk
0:00:58.8]} 18. Qb5+ {[%clk 0:02:06.8]} 18... Qd7 {[%clk 0:00:50.9]} 19. Qh5+
{[%clk 0:02:04.6]} 19... Qf7 {[%clk 0:00:52.1]} 1/2-1/2

[Event "*** Titled Tuesday Blitz"]
[Site "Chess.com"]
[Date "2019.11.05"]
[Round "4"]
[White "Mikhail_Golubev"]
[Black "DrRiebert"]
[Result "1-0"]
[WhiteElo "2620"]
[BlackElo "2401"]
[TimeControl "180+2"]
[EndTime "13:48:34 PST"]
[Termination "Mikhail_Golubev won by resignation"]

1. e4 {[%clk 0:03:01.9]} 1... c5 {[%clk 0:03:00.7]} 2. Nf3 {[%clk 0:03:02.1]}
2... Nc6 {[%clk 0:03:01.9]} 3. Nc3 {[%clk 0:03:02.1]} 3... Nf6 {[%clk
0:03:01.4]} 4. Bb5 {[%clk 0:03:01.2]} 4... d6 {[%clk 0:02:50.3]} 5. d4 {[%clk
0:02:45.1]} 5... cxd4 {[%clk 0:02:47.3]} 6. Qxd4 {[%clk 0:02:45.8]} 6... Bd7
{[%clk 0:02:42.9]} 7. Bxc6 {[%clk 0:02:46.4]} 7... Bxc6 {[%clk 0:02:42.4]} 8.
Bg5 {[%clk 0:02:46.6]} 8... Qa5 {[%clk 0:02:35.7]} 9. O-O-O {[%clk 0:02:35]}
9... e5 {[%clk 0:02:13.8]} 10. Qd3 {[%clk 0:02:30]} 10... Rc8 {[%clk 0:02:09.3]}
11. Bxf6 {[%clk 0:02:18.8]} 11... gxf6 {[%clk 0:02:08.8]} 12. Nh4 {[%clk
0:02:18.6]} 12... d5 {[%clk 0:01:31.9]} 13. Nxd5 {[%clk 0:01:51.9]} 1-0

[Event "*** Titled Tuesday Blitz"]
[Site "Chess.com"]
[Date "2019.11.05"]
[Round "4"]
[White "deBaller"]
[Black "Perecke"]
[Result "1-0"]
[WhiteElo "2336"]
[BlackElo "2135"]
[TimeControl "180+2"]
[EndTime "13:49:10 PST"]
[Termination "deBaller won by resignation"]

1. e4 {[%clk 0:03:01.9]} 1... e5 {[%clk 0:02:57.3]} 2. Nf3 {[%clk 0:03:02.6]}
2... Nc6 {[%clk 0:02:58.5]} 3. d4 {[%clk 0:03:03.9]} 3... exd4 {[%clk
0:03:00.4]} 4. Bc4 {[%clk 0:03:05.1]} 4... Nf6 {[%clk 0:03:01]} 5. e5 {[%clk
0:03:06.1]} 5... d5 {[%clk 0:03:02.6]} 6. Bb5 {[%clk 0:03:07.3]} 6... Ne4 {[%clk
0:03:04.2]} 7. Nxd4 {[%clk 0:03:08.8]} 7... Bc5 {[%clk 0:03:05.7]} 8. Be3 {[%clk
0:03:09.9]} 8... Bd7 {[%clk 0:03:03.6]} 9. Bxc6 {[%clk 0:03:09.7]} 9... bxc6
{[%clk 0:03:02]} 10. O-O {[%clk 0:03:10.9]} 10... O-O {[%clk 0:03:00.9]} 11. f3
{[%clk 0:03:11.9]} 11... Ng5 {[%clk 0:02:58.1]} 12. f4 {[%clk 0:03:13.2]} 12...
Ne6 {[%clk 0:02:56.6]} 13. c3 {[%clk 0:03:12.8]} 13... f6 {[%clk 0:02:57.2]} 14.
f5 {[%clk 0:03:12.9]} 14... Nxd4 {[%clk 0:02:35]} 15. cxd4 {[%clk 0:03:12.9]}
15... Bb6 {[%clk 0:02:33.7]} 16. e6 {[%clk 0:03:13.8]} 16... Bc8 {[%clk
0:02:34.2]} 17. Nc3 {[%clk 0:03:11.8]} 17... Kh8 {[%clk 0:02:32.7]} 18. Qg4
{[%clk 0:03:09.2]} 18... Qe7 {[%clk 0:02:26.4]} 19. Rf3 {[%clk 0:03:08.6]} 19...
g6 {[%clk 0:02:25.9]} 20. fxg6 {[%clk 0:02:47.6]} 20... Bxe6 {[%clk 0:02:25.8]}
21. Qh5 {[%clk 0:02:47.5]} 21... Qg7 {[%clk 0:02:07]} 22. Rg3 {[%clk 0:02:40.5]}
22... f5 {[%clk 0:01:33.4]} 23. Bh6 {[%clk 0:02:33.3]} 23... Qxd4+ {[%clk
0:01:34]} 24. Kh1 {[%clk 0:02:34.1]} 24... Rfe8 {[%clk 0:00:18.1]} 25. Bf8
{[%clk 0:02:24.2]} 1-0

[Event "*** Titled Tuesday Blitz"]
[Site "Chess.com"]
[Date "2019.11.05"]
[Round "4"]
[White "Darhild"]
[Black "platy3"]
[Result "0-1"]
[WhiteElo "2699"]
[BlackElo "2904"]
[TimeControl "180+2"]
[EndTime "13:49:22 PST"]
[Termination "platy3 won by resignation"]

1. e4 {[%clk 0:03:01.9]} 1... c5 {[%clk 0:02:59.3]} 2. Nf3 {[%clk 0:02:59.4]}
2... d6 {[%clk 0:02:59.4]} 3. d4 {[%clk 0:03:00.8]} 3... cxd4 {[%clk 0:03:00.8]}
4. Nxd4 {[%clk 0:03:02.7]} 4... Nf6 {[%clk 0:03:02.4]} 5. Nc3 {[%clk 0:03:04.2]}
5... Nc6 {[%clk 0:03:04]} 6. g3 {[%clk 0:02:59.6]} 6... Bg4 {[%clk 0:03:03.7]}
7. f3 {[%clk 0:02:47.7]} 7... Bd7 {[%clk 0:03:04.7]} 8. Bg2 {[%clk 0:02:44.4]}
8... g6 {[%clk 0:03:04.5]} 9. Nde2 {[%clk 0:02:40.6]} 9... Bg7 {[%clk
0:03:03.7]} 10. O-O {[%clk 0:02:34.6]} 10... b5 {[%clk 0:02:58.8]} 11. Bf4
{[%clk 0:02:09.8]} 11... b4 {[%clk 0:02:57.7]} 12. Nd5 {[%clk 0:02:10.5]} 12...
Nxd5 {[%clk 0:02:58.1]} 13. exd5 {[%clk 0:02:11.2]} 13... Na5 {[%clk 0:02:49.1]}
14. Qd2 {[%clk 0:02:02.6]} 14... Qb6+ {[%clk 0:02:42.7]} 15. Kh1 {[%clk
0:01:28.3]} 15... Nc4 {[%clk 0:02:43.5]} 16. Qd3 {[%clk 0:01:29.4]} 16... Nxb2
{[%clk 0:02:42.4]} 17. Qb3 {[%clk 0:01:07.2]} 17... Ba4 {[%clk 0:02:37.9]} 18.
Qe3 {[%clk 0:01:07.8]} 18... Nc4 {[%clk 0:02:35.9]} 19. Qe4 {[%clk 0:01:02.3]}
19... Rc8 {[%clk 0:02:33]} 20. Rae1 {[%clk 0:00:59.2]} 20... O-O {[%clk
0:02:32.4]} 21. Qxe7 {[%clk 0:00:58.4]} 21... Rfe8 {[%clk 0:02:29.9]} 22. Qh4
{[%clk 0:00:57.1]} 22... Bxc2 {[%clk 0:02:30.4]} 23. Bh6 {[%clk 0:00:58.1]}
23... Bxh6 {[%clk 0:02:22.4]} 24. Qxh6 {[%clk 0:00:58.9]} 24... Bd3 {[%clk
0:02:23.3]} 25. Bh3 {[%clk 0:00:55.1]} 25... Bxe2 {[%clk 0:02:05.2]} 26. Rxe2
{[%clk 0:00:49.6]} 26... Rxe2 {[%clk 0:02:04.4]} 27. Bxc8 {[%clk 0:00:51.2]}
27... Nd2 {[%clk 0:02:00.2]} 0-1

[Event "*** Titled Tuesday Blitz"]
[Site "Chess.com"]
[Date "2019.11.05"]
[Round "4"]
[White "Heineccius"]
[Black "ChessBitl"]
[Result "1-0"]
[WhiteElo "2588"]
[BlackElo "2345"]
[TimeControl "180+2"]
[EndTime "13:49:33 PST"]
[Termination "Heineccius won by resignation"]

1. d4 {[%clk 0:03:01.9]} 1... d5 {[%clk 0:02:58.9]} 2. c4 {[%clk 0:02:59.9]}
2... dxc4 {[%clk 0:03:00]} 3. e3 {[%clk 0:03:00.1]} 3... Nf6 {[%clk 0:03:00.6]}
4. Bxc4 {[%clk 0:03:01.1]} 4... e6 {[%clk 0:03:02.1]} 5. Nf3 {[%clk 0:03:01.1]}
5... c5 {[%clk 0:03:03.1]} 6. O-O {[%clk 0:03:02.5]} 6... a6 {[%clk 0:03:04.4]}
7. Bb3 {[%clk 0:03:01]} 7... Nc6 {[%clk 0:03:03.9]} 8. Nc3 {[%clk 0:03:00.7]}
8... b5 {[%clk 0:03:03.9]} 9. d5 {[%clk 0:02:56.1]} 9... exd5 {[%clk 0:03:04.6]}
10. a4 {[%clk 0:02:57.6]} 10... b4 {[%clk 0:03:01.2]} 11. Nxd5 {[%clk
0:02:56.1]} 11... Nxd5 {[%clk 0:03:02.2]} 12. Bxd5 {[%clk 0:02:54.8]} 12... Bb7
{[%clk 0:03:01.7]} 13. e4 {[%clk 0:02:40]} 13... Be7 {[%clk 0:03:02.3]} 14. Be3
{[%clk 0:02:35.6]} 14... O-O {[%clk 0:02:58.4]} 15. Rc1 {[%clk 0:02:36.9]} 15...
Qa5 {[%clk 0:02:45.9]} 16. Nd2 {[%clk 0:02:31.9]} 16... Rad8 {[%clk 0:02:37]}
17. Nb3 {[%clk 0:02:29.2]} 17... Qxa4 {[%clk 0:02:34.1]} 18. Nxc5 {[%clk
0:02:30.4]} 18... Qxd1 {[%clk 0:02:32.4]} 19. Rfxd1 {[%clk 0:02:31.6]} 19...
Bxc5 {[%clk 0:02:19.4]} 20. Bxc5 {[%clk 0:02:32.8]} 20... Rfe8 {[%clk 0:02:11]}
21. Bb6 {[%clk 0:02:27.8]} 21... Rc8 {[%clk 0:02:01.4]} 22. Kf1 {[%clk
0:02:28.9]} 22... a5 {[%clk 0:01:53.9]} 23. Rc5 {[%clk 0:02:04.7]} 23... Ba6+
{[%clk 0:01:44]} 24. Kg1 {[%clk 0:01:58.9]} 24... Red8 {[%clk 0:01:23.6]} 25.
Bxd8 {[%clk 0:01:56.5]} 25... Nxd8 {[%clk 0:01:21.3]} 26. Bb7 {[%clk 0:01:36.5]}
1-0

[Event "*** Titled Tuesday Blitz"]
[Site "Chess.com"]
[Date "2019.11.05"]
[Round "4"]
[White "Zq1"]
[Black "Guenplen"]
[Result "1-0"]
[WhiteElo "2617"]
[BlackElo "2946"]
[TimeControl "180+2"]
[EndTime "13:49:37 PST"]
[Termination "Zq1 won by checkmate"]

1. d4 {[%clk 0:03:01.9]} 1... d5 {[%clk 0:03:00.3]} 2. c4 {[%clk 0:03:02.7]}
2... e6 {[%clk 0:03:01.7]} 3. Nc3 {[%clk 0:03:02.6]} 3... a6 {[%clk 0:03:03.1]}
4. e4 {[%clk 0:02:58.3]} 4... dxe4 {[%clk 0:02:59.7]} 5. Nxe4 {[%clk 0:02:59.2]}
5... Nf6 {[%clk 0:03:01.6]} 6. Nxf6+ {[%clk 0:02:57.7]} 6... Qxf6 {[%clk
0:03:03.5]} 7. Nf3 {[%clk 0:02:58.4]} 7... Bb4+ {[%clk 0:02:57.6]} 8. Bd2 {[%clk
0:02:58.5]} 8... Bxd2+ {[%clk 0:02:58.7]} 9. Qxd2 {[%clk 0:02:59.7]} 9... O-O
{[%clk 0:02:59.6]} 10. Bd3 {[%clk 0:02:50.6]} 10... Rd8 {[%clk 0:03:00.3]} 11.
Rd1 {[%clk 0:02:47.8]} 11... Nc6 {[%clk 0:02:54.2]} 12. Be4 {[%clk 0:02:44]}
12... Nxd4 {[%clk 0:02:39.5]} 13. Nxd4 {[%clk 0:02:44.4]} 13... e5 {[%clk
0:02:36.4]} 14. Bd5 {[%clk 0:02:32.7]} 14... c6 {[%clk 0:02:13]} 15. Nxc6 {[%clk
0:02:31.7]} 15... bxc6 {[%clk 0:01:12.1]} 16. Bxf7+ {[%clk 0:02:31.9]} 16...
Kxf7 {[%clk 0:01:14]} 17. Qxd8 {[%clk 0:02:32.2]} 17... Qe6 {[%clk 0:00:40.6]}
18. O-O {[%clk 0:02:27.5]} 18... Qxc4 {[%clk 0:00:40.8]} 19. Qc7+ {[%clk
0:02:24.1]} 19... Kf6 {[%clk 0:00:35.6]} 20. Rd6+ {[%clk 0:02:18.8]} 20... Be6
{[%clk 0:00:35]} 21. Qxc6 {[%clk 0:02:11.2]} 21... Qxc6 {[%clk 0:00:33.6]} 22.
Rxc6 {[%clk 0:02:11.7]} 22... a5 {[%clk 0:00:35.5]} 23. Rd1 {[%clk 0:02:05.6]}
23... Kf7 {[%clk 0:00:29.1]} 24. Rdd6 {[%clk 0:01:56.4]} 24... Bxa2 {[%clk
0:00:25.8]} 25. Rc7+ {[%clk 0:01:53.6]} 25... Kf8 {[%clk 0:00:21.5]} 26. Rdd7
{[%clk 0:01:54.6]} 26... Rb8 {[%clk 0:00:20]} 27. h4 {[%clk 0:01:53.2]} 27...
Rxb2 {[%clk 0:00:19.8]} 28. Rd8# {[%clk 0:01:53.5]} 1-0

[Event "*** Titled Tuesday Blitz"]
[Site "Chess.com"]
[Date "2019.11.05"]
[Round "4"]
[White "Zhuu96"]
[Black "rasmussvane"]
[Result "1-0"]
[WhiteElo "2986"]
[BlackElo "2831"]
[TimeControl "180+2"]
[EndTime "13:49:49 PST"]
[Termination "Zhuu96 won by resignation"]

1. e4 {[%clk 0:03:01.2]} 1... c6 {[%clk 0:03:01.3]} 2. d4 {[%clk 0:03:02.1]}
2... d5 {[%clk 0:03:03.2]} 3. exd5 {[%clk 0:02:58.2]} 3... cxd5 {[%clk
0:03:05.1]} 4. Nf3 {[%clk 0:02:58.4]} 4... Nf6 {[%clk 0:03:02.8]} 5. Bd3 {[%clk
0:02:58.5]} 5... Nc6 {[%clk 0:03:03.6]} 6. c3 {[%clk 0:02:59.3]} 6... Bg4 {[%clk
0:03:04.8]} 7. Bf4 {[%clk 0:02:59.1]} 7... e6 {[%clk 0:03:06.1]} 8. Nbd2 {[%clk
0:02:59]} 8... Be7 {[%clk 0:03:07.1]} 9. O-O {[%clk 0:02:59.4]} 9... O-O {[%clk
0:03:08.3]} 10. h3 {[%clk 0:03:00.9]} 10... Bh5 {[%clk 0:03:09.5]} 11. Qb3
{[%clk 0:03:01.8]} 11... Qc8 {[%clk 0:03:08.9]} 12. Rfe1 {[%clk 0:03:00.8]}
12... Re8 {[%clk 0:03:10.3]} 13. a4 {[%clk 0:02:56.5]} 13... a6 {[%clk
0:03:07.3]} 14. Qc2 {[%clk 0:02:55.3]} 14... Bg6 {[%clk 0:03:03.8]} 15. Bxg6
{[%clk 0:02:56.2]} 15... hxg6 {[%clk 0:03:05.7]} 16. Qd3 {[%clk 0:02:56.8]}
16... b6 {[%clk 0:02:56.6]} 17. b4 {[%clk 0:02:47.8]} 17... Qb7 {[%clk
0:02:54.9]} 18. Nb3 {[%clk 0:02:44.3]} 18... Rec8 {[%clk 0:02:52.7]} 19. Nfd2
{[%clk 0:02:38.3]} 19... Ne8 {[%clk 0:02:34.8]} 20. b5 {[%clk 0:02:37.4]} 20...
axb5 {[%clk 0:02:35.8]} 21. axb5 {[%clk 0:02:34.7]} 21... Nd8 {[%clk 0:02:09.8]}
22. c4 {[%clk 0:02:28.2]} 22... dxc4 {[%clk 0:02:11.7]} 23. Nxc4 {[%clk
0:02:28.9]} 23... Nf6 {[%clk 0:02:12.1]} 24. Nbd2 {[%clk 0:02:16.2]} 24... Bb4
{[%clk 0:01:54.6]} 25. Reb1 {[%clk 0:02:13.1]} 25... Bf8 {[%clk 0:01:47.1]} 26.
Bd6 {[%clk 0:02:08.4]} 26... Ne8 {[%clk 0:01:18.3]} 27. Bxf8 {[%clk 0:01:59.5]}
27... Kxf8 {[%clk 0:01:20.2]} 28. Ne5 {[%clk 0:01:52.3]} 28... Nf6 {[%clk
0:01:14.8]} 29. Ndc4 {[%clk 0:01:51]} 29... Qc7 {[%clk 0:01:06.2]} 30. Ra6
{[%clk 0:01:49.1]} 30... Nd5 {[%clk 0:01:05.8]} 31. Qa3+ {[%clk 0:01:48.8]}
31... Ne7 {[%clk 0:00:50.9]} 32. Rxa8 {[%clk 0:01:50.7]} 32... Rxa8 {[%clk
0:00:52.5]} 33. Qxa8 {[%clk 0:01:50.8]} 33... f6 {[%clk 0:00:54.4]} 34. Nc6
{[%clk 0:01:50.8]} 1-0

[Event "*** Titled Tuesday Blitz"]
[Site "Chess.com"]
[Date "2019.11.05"]
[Round "4"]
[White "anesar92"]
[Black "GasconJR"]
[Result "1-0"]
[WhiteElo "2688"]
[BlackElo "2469"]
[TimeControl "180+2"]
[EndTime "13:49:53 PST"]
[Termination "anesar92 won by resignation"]

1. e4 {[%clk 0:03:01.9]} 1... e5 {[%clk 0:02:59.3]} 2. Nf3 {[%clk 0:03:02.3]}
2... Nc6 {[%clk 0:03:00.1]} 3. Nc3 {[%clk 0:03:03.9]} 3... Nf6 {[%clk
0:03:00.5]} 4. Be2 {[%clk 0:03:05.4]} 4... g6 {[%clk 0:02:38.4]} 5. d4 {[%clk
0:03:03.6]} 5... exd4 {[%clk 0:02:38.1]} 6. Nxd4 {[%clk 0:03:05.5]} 6... d6
{[%clk 0:02:33.4]} 7. Bg5 {[%clk 0:03:06.4]} 7... Bg7 {[%clk 0:02:31.3]} 8. Nxc6
{[%clk 0:03:06.9]} 8... bxc6 {[%clk 0:02:26.4]} 9. e5 {[%clk 0:03:08.8]} 9...
dxe5 {[%clk 0:02:25.9]} 10. Qxd8+ {[%clk 0:03:10.7]} 10... Kxd8 {[%clk
0:02:26.8]} 11. O-O-O+ {[%clk 0:03:12.6]} 11... Ke7 {[%clk 0:02:27.6]} 12. Bf3
{[%clk 0:03:10.4]} 12... Be6 {[%clk 0:01:59.1]} 13. Rhe1 {[%clk 0:02:58.5]}
13... h6 {[%clk 0:01:56.9]} 14. Be3 {[%clk 0:02:57.1]} 14... Nd5 {[%clk
0:01:47.8]} 15. Bc5+ {[%clk 0:02:49.8]} 15... Kd7 {[%clk 0:01:39.8]} 16. Na4
{[%clk 0:02:41.3]} 16... Kc8 {[%clk 0:01:19.6]} 17. c4 {[%clk 0:02:41.4]} 17...
Nb6 {[%clk 0:01:15.1]} 18. Bxc6 {[%clk 0:02:36.6]} 18... Nxa4 {[%clk 0:01:03.2]}
19. Bxa4 {[%clk 0:02:36.1]} 19... Kb7 {[%clk 0:01:03.7]} 20. Re3 {[%clk
0:02:30.1]} 20... Bxc4 {[%clk 0:00:49]} 21. Rc3 {[%clk 0:02:28.8]} 21... Be6
{[%clk 0:00:49.3]} 22. Be7 {[%clk 0:02:20.8]} 22... e4 {[%clk 0:00:36.4]} 23.
Bc6+ {[%clk 0:02:20.7]} 23... Kb6 {[%clk 0:00:37.6]} 24. Rc2 {[%clk 0:02:17.9]}
24... Rab8 {[%clk 0:00:26.2]} 25. Bxe4 {[%clk 0:02:17.9]} 25... Ka6 {[%clk
0:00:13.4]} 26. Rd3 {[%clk 0:02:15.7]} 26... Rb5 {[%clk 0:00:09.8]} 27. Ra3+
{[%clk 0:02:12.4]} 27... Ra5 {[%clk 0:00:05.1]} 28. Rc6+ {[%clk 0:02:13]} 1-0

[Event "*** Titled Tuesday Blitz"]
[Site "Chess.com"]
[Date "2019.11.05"]
[Round "4"]
[White "chanchakman"]
[Black "Kazan28"]
[Result "0-1"]
[WhiteElo "2156"]
[BlackElo "2362"]
[TimeControl "180+2"]
[EndTime "13:49:57 PST"]
[Termination "Kazan28 won on time"]

1. g3 {[%clk 0:02:54.5]} 1... d5 {[%clk 0:03:00.7]} 2. Bg2 {[%clk 0:02:55.7]}
2... e5 {[%clk 0:03:00.5]} 3. c4 {[%clk 0:02:57]} 3... d4 {[%clk 0:03:01.3]} 4.
d3 {[%clk 0:02:58.8]} 4... Bb4+ {[%clk 0:03:00.2]} 5. Bd2 {[%clk 0:02:59.5]}
5... a5 {[%clk 0:03:02.1]} 6. Nf3 {[%clk 0:03:00.4]} 6... Nc6 {[%clk 0:03:02]}
7. O-O {[%clk 0:03:01.4]} 7... Nf6 {[%clk 0:03:03.2]} 8. Bg5 {[%clk 0:02:34.1]}
8... O-O {[%clk 0:02:59.6]} 9. Nbd2 {[%clk 0:02:34.9]} 9... h6 {[%clk
0:02:57.8]} 10. Bxf6 {[%clk 0:02:35]} 10... Qxf6 {[%clk 0:02:59.7]} 11. Ne4
{[%clk 0:02:36.9]} 11... Qd8 {[%clk 0:03:00.3]} 12. a3 {[%clk 0:02:38.2]} 12...
Be7 {[%clk 0:03:01]} 13. Qc2 {[%clk 0:02:21.2]} 13... a4 {[%clk 0:03:00.8]} 14.
e3 {[%clk 0:02:19.7]} 14... dxe3 {[%clk 0:02:58]} 15. fxe3 {[%clk 0:02:21.3]}
15... f5 {[%clk 0:02:59.4]} 16. Nf2 {[%clk 0:02:15.8]} 16... Bc5 {[%clk
0:03:00]} 17. Rfe1 {[%clk 0:02:09.7]} 17... Bb6 {[%clk 0:02:58.2]} 18. c5 {[%clk
0:02:03.9]} 18... Ba7 {[%clk 0:02:57.8]} 19. Qxa4 {[%clk 0:01:55.6]} 19... Be6
{[%clk 0:02:58.6]} 20. Qc2 {[%clk 0:01:55.2]} 20... g5 {[%clk 0:02:54.2]} 21. b4
{[%clk 0:01:49.4]} 21... g4 {[%clk 0:02:53.2]} 22. Nh4 {[%clk 0:01:46.4]} 22...
Qg5 {[%clk 0:02:54]} 23. Qc3 {[%clk 0:01:19.6]} 23... Rae8 {[%clk 0:02:51.6]}
24. d4 {[%clk 0:01:17]} 24... e4 {[%clk 0:02:50.9]} 25. Bf1 {[%clk 0:00:48.1]}
25... Ne7 {[%clk 0:02:51.6]} 26. Ng2 {[%clk 0:00:46.1]} 26... Nd5 {[%clk
0:02:52.5]} 27. Qd2 {[%clk 0:00:46]} 27... c6 {[%clk 0:02:54.4]} 28. Nf4 {[%clk
0:00:45.1]} 28... Bb8 {[%clk 0:02:56.3]} 29. Nxe6 {[%clk 0:00:37.3]} 29... Rxe6
{[%clk 0:02:58.2]} 30. Bc4 {[%clk 0:00:38.5]} 30... h5 {[%clk 0:02:58.9]} 31.
Bxd5 {[%clk 0:00:36.7]} 31... cxd5 {[%clk 0:03:00.8]} 32. Nh1 {[%clk 0:00:38.5]}
32... Rh6 {[%clk 0:03:01.3]} 33. Qg2 {[%clk 0:00:30.6]} 33... Kg7 {[%clk
0:03:02.3]} 34. Re2 {[%clk 0:00:29.1]} 34... Rfh8 {[%clk 0:03:01.9]} 35. a4
{[%clk 0:00:26.6]} 35... h4 {[%clk 0:03:03.8]} 0-1

[Event "*** Titled Tuesday Blitz"]
[Site "Chess.com"]
[Date "2019.11.05"]
[Round "4"]
[White "misha_chessone"]
[Black "Ceejay271"]
[Result "0-1"]
[WhiteElo "2461"]
[BlackElo "2336"]
[TimeControl "180+2"]
[EndTime "13:50:11 PST"]
[Termination "Ceejay271 won by resignation"]

1. d4 {[%clk 0:03:01.4]} 1... Nf6 {[%clk 0:03:00.1]} 2. c4 {[%clk 0:03:02.3]}
2... e6 {[%clk 0:03:00]} 3. Nc3 {[%clk 0:03:03.2]} 3... Bb4 {[%clk 0:03:00.2]}
4. Qc2 {[%clk 0:03:04.1]} 4... d5 {[%clk 0:02:59.7]} 5. cxd5 {[%clk 0:03:02.7]}
5... Qxd5 {[%clk 0:03:00.6]} 6. e3 {[%clk 0:02:57.6]} 6... c5 {[%clk 0:02:59.7]}
7. Nf3 {[%clk 0:02:54.8]} 7... Nc6 {[%clk 0:02:40.3]} 8. a3 {[%clk 0:02:53.4]}
8... Bxc3+ {[%clk 0:02:38.2]} 9. bxc3 {[%clk 0:02:54.2]} 9... Qd6 {[%clk
0:02:30.4]} 10. Be2 {[%clk 0:02:43.9]} 10... O-O {[%clk 0:02:30.2]} 11. O-O
{[%clk 0:02:44.7]} 11... e5 {[%clk 0:02:30.5]} 12. dxe5 {[%clk 0:02:33.3]} 12...
Nxe5 {[%clk 0:02:30.3]} 13. Nxe5 {[%clk 0:02:33.5]} 13... Qxe5 {[%clk 0:02:31]}
14. Bb2 {[%clk 0:02:33.4]} 14... Bf5 {[%clk 0:02:30.2]} 15. Qb3 {[%clk
0:02:28.8]} 15... b6 {[%clk 0:02:28.7]} 16. c4 {[%clk 0:02:27]} 16... Qe6 {[%clk
0:02:25.9]} 17. a4 {[%clk 0:02:16.6]} 17... Ne4 {[%clk 0:02:22.4]} 18. Rfd1
{[%clk 0:02:11.3]} 18... Rfd8 {[%clk 0:02:20.7]} 19. a5 {[%clk 0:01:59.4]} 19...
Rab8 {[%clk 0:02:08.5]} 20. axb6 {[%clk 0:01:45.8]} 20... axb6 {[%clk
0:02:10.4]} 21. h3 {[%clk 0:01:29.9]} 21... h6 {[%clk 0:02:06.3]} 22. Qb5 {[%clk
0:01:16.6]} 22... Qg6 {[%clk 0:01:57.9]} 23. Bf3 {[%clk 0:00:40.4]} 23... Nd2
{[%clk 0:01:53.5]} 24. Bd5 {[%clk 0:00:23]} 24... Bxh3 {[%clk 0:01:43.9]} 25. g3
{[%clk 0:00:17.5]} 25... Rxd5 {[%clk 0:01:36.5]} 26. cxd5 {[%clk 0:00:13.7]}
26... Qe4 {[%clk 0:01:36.7]} 0-1